fUSD/lending_fUSD_20251103
["ID","MTS","AMOUNT","RATE_DAILY","PERIOD"]
[392913410,1762131915539,166.80831812,0.00013488,2]
[392913411,1762131917452,1284.52,0.00014,2]
[392913412,1762131918057,150.0,0.00013488,2]
[392913413,1762131931109,156.60236015,0.00013488,2]
[392913414,1762131932832,250.0,0.0001447,2]
[392913419,1762132038795,-300.0,0.00014523,2]
[392913420,1762132071670,2044.99,0.00013938,2]
[392913437,1762132200058,2751.0,0.00014026,2]
[392913443,1762132225689,201.68,0.00013978,2]
[392913463,1762132231751,-367.68546221,0.00014533,2]
[392913464,1762132231763,-571.40658039,0.00014533,2]
[392913465,1762132231775,-63.46830075,0.00014533,2]
[392913466,1762132231784,-300.0,0.00014533,2]
[392913467,1762132231795,-300.0,0.00014536,2]
[392913468,1762132231805,-195.0,0.00014536,2]
[392913469,1762132231816,-250.0,0.00014538,2]
[392913470,1762132231825,-166.61206372,0.00014544,2]
[392913471,1762132231834,-177.5440256,0.00014547,2]
[392913472,1762132231845,-17.4559744,0.00014547,2]
[392913473,1762132231855,-153.79597611,0.00014552,2]
[392913474,1762132231866,-219.37458201,0.00014565,2]
[392913475,1762132231876,-500.0,0.0001458,2]
[392913476,1762132231885,-578.20924308,0.0001458,2]
[392913477,1762132231896,-1928.79113265,0.000148,2]
[392913478,1762132231906,-239.84119403,0.00014877,2]
[392913479,1762132231916,-200.0,0.0001488,2]
[392913480,1762132231925,-300.0,0.00014884,2]
[392913481,1762132231940,-1200.0,0.00014884,2]
[392913482,1762132231950,-150.0,0.00014885,2]
[392913483,1762132231960,-9999.99,0.00014886,2]
[392913484,1762132231971,-9268.10609431,0.00014886,2]
[392913485,1762132231983,-731.88390569,0.00014886,2]
[392913486,1762132231994,-999.99,0.00014886,2]
[392913487,1762132232005,-150.99,0.00014886,2]
[392913488,1762132232015,-1232.48988731,0.000149,2]
[392913489,1762132232028,-376.69991412,0.000149,2]
[392913490,1762132232041,-793.30310123,0.000149,2]
[392913493,1762132232057,-4031.18679052,0.000149,2]
[392913495,1762132232072,-1273.24724777,0.000149,2]
[392913497,1762132232086,-11602.82711157,0.000149,2]
[392913499,1762132232095,-1168.99353244,0.000149,2]
[392913501,1762132232105,-296.20307997,0.000149,2]
[392913503,1762132232114,-298.6354161,0.000149,2]
[392913505,1762132232125,-45830.4807473,0.00014965,2]
[392913507,1762132232138,-151.0,0.00014971,2]
[392913509,1762132232147,-4619.735,0.00014972,2]
[392913511,1762132232157,-302.829,0.00014972,2]
[392913513,1762132232166,-549.1,0.00014972,2]
[392913515,1762132232176,-203.47613807,0.00014972,2]
[392913517,1762132232185,-500.0,0.00014972,2]
[392913519,1762132232195,-151.0,0.00014972,2]
[392913521,1762132232204,-500.0,0.00014972,2]
[392913523,1762132232214,-151.0,0.00014972,2]
[392913526,1762132232223,-500.0,0.00014972,2]
[392913528,1762132232233,-151.0,0.00014972,2]
[392913530,1762132232242,-500.0,0.00014972,2]
[392913531,1762132232252,-151.0,0.00014972,2]
[392913533,1762132232261,-316.75873735,0.00014972,2]
[392913535,1762132232271,-500.0,0.00014972,2]
[392913536,1762132232280,-151.0,0.00014972,2]
[392913537,1762132232289,-500.0,0.00014972,2]
[392913538,1762132232299,-151.0,0.00014972,2]
[392913540,1762132232308,-151.0,0.00014972,2]
[392913542,1762132232317,-151.0,0.00014972,2]
[392913544,1762132232327,-151.0,0.00014972,2]
[392913545,1762132232340,-500.0,0.00014972,2]
[392913546,1762132232349,-151.0,0.00014972,2]
[392913547,1762132232359,-151.0,0.00014972,2]
[392913548,1762132232368,-500.0,0.00014972,2]
[392913549,1762132232378,-151.0,0.00014972,2]
[392913550,1762132232387,-151.0,0.00014972,2]
[392913551,1762132232397,-500.0,0.00014972,2]
[392913552,1762132232406,-151.0,0.00014972,2]
[392913553,1762132232415,-151.0,0.00014972,2]
[392913554,1762132232425,-500.0,0.00014972,2]
[392913555,1762132232435,-151.0,0.00014972,2]
[392913556,1762132232445,-151.0,0.00014972,2]
[392913557,1762132232455,-500.0,0.00014972,2]
[392913558,1762132232464,-151.0,0.00014972,2]
[392913559,1762132232474,-500.0,0.00014972,2]
[392913560,1762132232483,-151.0,0.00014972,2]
[392913561,1762132232493,-151.0,0.00014972,2]
[392913562,1762132232502,-151.0,0.00014972,2]
[392913563,1762132232511,-500.0,0.00014972,2]
[392913564,1762132232520,-200.0,0.00014972,2]
[392913565,1762132232530,-151.0,0.00014972,2]
[392913566,1762132232544,-500.0,0.00014972,2]
[392913567,1762132232553,-151.0,0.00014972,2]
[392913568,1762132232562,-151.0,0.00014972,2]
[392913569,1762132232572,-500.0,0.00014972,2]
[392913570,1762132232581,-500.0,0.00014972,2]
[392913571,1762132232591,-151.0,0.00014972,2]
[392913572,1762132232600,-500.0,0.00014972,2]
[392913573,1762132232609,-500.0,0.00014972,2]
[392913574,1762132232619,-500.0,0.00014972,2]
[392913575,1762132232628,-500.0,0.00014972,2]
[392913576,1762132232637,-500.0,0.00014972,2]
[392913577,1762132232648,-496.47127164,0.00014972,2]
[392913578,1762132232657,-500.0,0.00014972,2]
[392913579,1762132232666,-500.0,0.00014972,2]
[392913580,1762132232675,-500.0,0.00014972,2]
[392913581,1762132232685,-500.0,0.00014972,2]
[392913582,1762132232694,-500.0,0.00014972,2]
[392913583,1762132232705,-623.58710448,0.00014972,2]
[392913584,1762132232718,-500.0,0.00014972,2]
[392913585,1762132232730,-322.6107,0.00014972,2]
[392913586,1762132232740,-500.0,0.00014972,2]
[392913587,1762132232751,-500.0,0.00014972,2]
[392913588,1762132232761,-500.0,0.00014972,2]
[392913589,1762132232770,-500.0,0.00014972,2]
[392913590,1762132232780,-151.0,0.00014972,2]
[392913591,1762132232789,-151.0,0.00014972,2]
[392913592,1762132232798,-500.0,0.00014972,2]
[392913593,1762132232808,-500.0,0.00014972,2]
[392913594,1762132232817,-500.0,0.00014972,2]
[392913595,1762132232827,-500.0,0.00014973,2]
[392913596,1762132232836,-542.320165,0.00014973,2]
[392913597,1762132232845,-500.0,0.00014973,2]
[392913598,1762132232855,-500.0,0.00014973,2]
[392913599,1762132232865,-500.0,0.00014973,2]
[392913600,1762132232874,-500.0,0.00014973,2]
[392913601,1762132232884,-500.0,0.00014973,2]
[392913602,1762132232894,-500.0,0.00014973,2]
[392913603,1762132232904,-500.0,0.0001498,2]
[392913604,1762132232913,-500.0,0.0001498,2]
[392913605,1762132232922,-189.80489152,0.0001498,2]
[392913606,1762132232932,-195.1750701,0.0001498,2]
[392913607,1762132232941,-279.03829715,0.0001498,2]
[392913608,1762132232951,-500.0,0.0001498,2]
[392913609,1762132232962,-179.45253037,0.0001498,2]
[392913610,1762132232973,-408.65127593,0.0001498,2]
[392913611,1762132232984,-3106.8126563,0.00014981,2]
[392913612,1762132232994,-111911.5706364,0.00014981,2]
[392913613,1762132233003,-150.0,0.00014991,2]
[392913614,1762132233012,-151.90944434,0.00014991,2]
[392913615,1762132233022,-150.0,0.00014991,2]
[392913616,1762132233031,-154.02119506,0.00014991,2]
[392913617,1762132233040,-150.0,0.00014991,2]
[392913618,1762132233049,-151.35528404,0.00014991,2]
[392913619,1762132233058,-150.0,0.00014991,2]
[392913620,1762132233067,-202.01765236,0.00014991,2]
[392913621,1762132233078,-296.45620748,0.00014991,2]
[392913622,1762132233089,-150.0,0.00014991,2]
[392913623,1762132233099,-150.0,0.00014991,2]
[392913624,1762132233117,-200.0,0.00014991,2]
[392913625,1762132233129,-150.0,0.00014991,2]
[392913626,1762132233140,-150.0,0.00014991,2]
[392913627,1762132233151,-500.0,0.00014991,2]
[392913628,1762132233162,-500.0,0.00014991,2]
[392913629,1762132233173,-500.0,0.00014991,2]
[392913630,1762132233182,-150.0,0.00014991,2]
[392913631,1762132233192,-150.0,0.00014991,2]
[392913632,1762132233201,-150.0,0.00014991,2]
[392913633,1762132233211,-150.0,0.00014991,2]
[392913634,1762132233220,-150.0,0.00014991,2]
[392913635,1762132233230,-150.0,0.00014991,2]
[392913636,1762132233240,-150.0,0.00014991,2]
[392913637,1762132233249,-150.0,0.00014991,2]
[392913638,1762132233259,-500.0,0.00014991,2]
[392913639,1762132233269,-500.0,0.00014991,2]
[392913640,1762132233279,-500.0,0.00014998,2]
[392913641,1762132233288,-2390.26135542,0.00014999,2]
[392913642,1762132233298,-200.0,0.00014999,2]
[392913643,1762132233307,-39129.31328165,0.00014999,2]
[392913644,1762132233322,-27700.59017405,0.00014999,2]
[392913645,1762132233334,-506.02,0.00014999,2]
[392913646,1762132233347,-952.62318679,0.00014999,2]
[392913647,1762132233359,-1175.54681999,0.00014999,2]
[392913648,1762132233371,-922.41530248,0.00014999,2]
[392913655,1762132237576,-11545.02918627,0.00014999,2]
[392913657,1762132237587,-151.0,0.00014999,2]
[392913659,1762132237597,-181.015757,0.00014999,2]
[392913661,1762132237608,-2790.0,0.00015,2]
[392913663,1762132237620,-91562.59866059,0.00015,2]
[392913666,1762132237639,-1145.63699875,0.00015,2]
[392913669,1762132237690,-4866.71299947,0.00015,2]
[392913670,1762132237703,-20095.67261459,0.00015,2]
[392913671,1762132237717,-19712.17114131,0.00015,2]
[392913672,1762132237731,-15576.39748632,0.00015,2]
[392913673,1762132237745,-3647.34342195,0.00015,2]
[392913674,1762132237759,-295.28149359,0.00015,2]
[392913675,1762132237772,-6071.16812874,0.00015,2]
[392913676,1762132237801,-359.43084897,0.00015,2]
[392913686,1762132239784,-10987.98472058,0.00015,2]
[392913687,1762132239839,-67448.12229394,0.00015,2]
[392913695,1762132242714,-160.60781922,0.000149,2]
[392913696,1762132242726,-573.43792657,0.00015,2]
[392913697,1762132242739,-1338.89025357,0.00015,2]
[392913698,1762132242768,-1130.40073013,0.00015,2]
[392913699,1762132242781,-2286.63411454,0.00015,2]
[392913700,1762132242794,-2609.56105979,0.00015,2]
[392913701,1762132242806,-1012.85979988,0.00015,2]
[392913702,1762132242818,-461.412428,0.00015,2]
[392913703,1762132242877,-3601.72479197,0.00015,2]
[392913704,1762132242934,-542.20277497,0.00015,2]
[392913709,1762132245754,-19978.28569583,0.00015,2]
[392913710,1762132245968,-1071.549,0.00015,2]
[392913711,1762132245981,-1591.49311888,0.00015,2]
[392913712,1762132246028,-953.65375589,0.00015,2]
[392913717,1762132528091,275.36932173,0.00014,2]
[392913718,1762132528113,793.63067827,0.00014,2]
[392913719,1762132550532,1000.0,0.00014292,2]
[392913720,1762132575191,176.34,0.00011433,2]
[392913721,1762132575400,176.34,0.00012863,2]
[392913722,1762132575618,176.34,0.00014292,2]
[392913723,1762132611454,1408.1,0.00014292,2]
[392913725,1762132630055,204.58,0.00014292,2]
[392913728,1762132645005,6064.67932173,0.00014236,2]
[392913729,1762132645030,10000.01,0.00014236,2]
[392913730,1762132645051,9999.79067827,0.00014236,2]
[392913731,1762132645650,-232.00013723,0.00014508,2]
[392913734,1762132652836,-67.99986277,0.00014508,2]
[392913735,1762132652858,-132.00013723,0.00014572,2]
[392913736,1762132715559,0.21932173,0.00014168,2]
[392913737,1762132715582,499.78067827,0.00014168,2]
[392913738,1762132747374,1040.36,0.0001414,2]
[392913739,1762132763831,150.0,0.00014113,2]
[392913741,1762132795043,150.0,0.00014113,2]
[392913742,1762132800218,5784.45,0.00014106,2]
[392913747,1762132914364,2375.41932173,0.00014168,2]
[392913748,1762132914389,10000.01,0.00014168,2]
[392913749,1762132914412,632.95067827,0.00014168,2]
[392913750,1762132935570,500.0,0.00013,2]
[392913751,1762132935723,500.0,0.00013,2]
[392913752,1762132935919,500.0,0.00013,2]
[392913753,1762132936314,500.0,0.00012011,2]
[392913754,1762132943451,500.0,0.00013,2]
[392913755,1762132943646,500.0,0.00013,2]
[392913756,1762132943796,500.0,0.00013,2]
[392913757,1762132944143,500.0,0.00012011,2]
[392913758,1762132947197,500.0,0.00013,2]
[392913759,1762132960178,4361.7,0.00014042,2]
[392913760,1762132993924,505.35932173,0.00014103,2]
[392913761,1762132993946,994.64067827,0.00014103,2]
[392913762,1762133022142,607.66,0.00014051,2]
[392913765,1762133058452,721.68,0.00018,30]
[392913766,1762133092608,8397.70932173,0.00014017,2]
[392913767,1762133092630,10000.01,0.00014017,2]
[392913768,1762133092651,10000.01,0.00014017,2]
[392913769,1762133092674,10000.01,0.00014017,2]
[392913770,1762133092696,7610.58067827,0.00014017,2]
[392913771,1762133105109,284.46,0.00013699,2]
[392913772,1762133109019,150.0,0.00013488,2]
[392913773,1762133109061,150.0,0.00013862,2]
[392913774,1762133109138,150.0,0.00014237,2]
[392913775,1762133109421,150.0,0.00013488,2]
[392913776,1762133109469,150.0,0.00013654,2]
[392913777,1762133109543,150.0,0.00013821,2]
[392913778,1762133109624,150.0,0.00013987,2]
[392913779,1762133109683,150.0,0.00014154,2]
[392913780,1762133109751,150.0,0.0001432,2]
[392913781,1762133109826,150.0,0.00014487,2]
[392913782,1762133115016,150.0,0.00013488,2]
[392913783,1762133115084,150.0,0.00013675,2]
[392913784,1762133115168,150.0,0.00013862,2]
[392913785,1762133115235,150.0,0.0001405,2]
[392913786,1762133115276,150.0,0.00014237,2]
[392913787,1762133115318,150.0,0.00014424,2]
[392913788,1762133115653,150.0,0.00013488,2]
[392913789,1762133115720,150.0,0.00013987,2]
[392913790,1762133115794,150.0,0.00014487,2]
[392913791,1762133117443,150.0,0.00013488,2]
[392913792,1762133119493,2539.37121769,9e-05,2]
[392913793,1762133119868,150.0,0.00013488,2]
[392913794,1762133119936,150.0,0.00013675,2]
[392913795,1762133120015,150.0,0.00013862,2]
[392913796,1762133120084,150.0,0.0001405,2]
[392913797,1762133120152,150.0,0.00014237,2]
[392913798,1762133120222,150.0,0.00014424,2]
[392913799,1762133122173,2527.49306128,0.00014,2]
[392913801,1762133128107,150.0,0.00013488,2]
[392913802,1762133128152,151.30607371,0.00013488,2]
[392913803,1762133128250,262.06521572,0.00013488,2]
[392913804,1762133128308,150.0,0.00013488,2]
[392913805,1762133129367,150.0,0.00013488,2]
[392913806,1762133129434,150.0,0.00014237,2]
[392913807,1762133129599,202.84707978,0.00013488,2]
[392913808,1762133131419,150.0,0.00013488,2]
[392913809,1762133131492,150.0,0.00013987,2]
[392913810,1762133131552,150.0,0.00014487,2]
[392913811,1762133134241,150.0,0.00013488,2]
[392913812,1762133134310,150.0,0.00013862,2]
[392913813,1762133134382,150.0,0.00014237,2]
[392913814,1762133153381,492.36695992,0.0001399,2]
[392913815,1762133154328,-161.82506066,0.00014525,2]
[392913816,1762133155989,-167.1132101,0.00014525,2]
[392913817,1762133209562,200.0,0.00013879,2]
[392913818,1762133230420,306.679293,0.00014496,2]
[392913819,1762133240648,500.0,0.00013,2]
[392913820,1762133240877,500.0,0.00013,2]
[392913821,1762133241002,500.0,0.00013,2]
[392913822,1762133241227,500.0,0.00013,2]
[392913823,1762133241329,500.0,0.00013,2]
[392913824,1762133241577,500.0,0.00013,2]
[392913825,1762133241686,500.0,0.00012011,2]
[392913826,1762133241916,500.0,0.00013,2]
[392913827,1762133241988,500.0,0.00012011,2]
[392913828,1762133242295,500.0,0.00013,2]
[392913829,1762133242338,552.62673525,0.00012011,2]
[392913830,1762133242637,500.0,0.00012011,2]
[392913831,1762133242693,500.0,0.00013,2]
[392913832,1762133242994,332.11864262,0.00012011,2]
[392913833,1762133243016,167.88135738,0.00012011,2]
[392913834,1762133243057,500.0,0.00013,2]
[392913835,1762133243397,500.0,0.00012011,2]
[392913836,1762133243440,500.0,0.00013,2]
[392913837,1762133243801,671.29303997,0.00012011,2]
[392913838,1762133243853,500.0,0.00012011,2]
[392913839,1762133244112,752.72436242,0.00012011,2]
[392913840,1762133246044,500.0,0.00013,2]
[392913841,1762133246225,500.0,0.00013,2]
[392913842,1762133246391,500.0,0.00013,2]
[392913843,1762133246552,500.0,0.00013,2]
[392913844,1762133246721,500.0,0.00012011,2]
[392913845,1762133246890,500.0,0.00013,2]
[392913846,1762133247031,900.0,0.00012011,2]
[392913847,1762133247249,500.0,0.00013,2]
[392913848,1762133247576,500.0,0.00013,2]
[392913849,1762133247914,500.0,0.00013,2]
[392913850,1762133248263,500.0,0.00013,2]
[392913851,1762133248360,156.36,0.00013699,2]
[392913852,1762133248591,351.75124023,0.00013,2]
[392913853,1762133248614,148.24875977,0.00013,2]
[392913854,1762133248942,500.0,0.00013,2]
[392913855,1762133248992,341.35246612,0.00013,2]
[392913856,1762133249281,500.0,0.00013,2]
[392913857,1762133249677,500.0,0.00013,2]
[392913858,1762133249977,246.1582886,0.00013,2]
[392913859,1762133250017,500.0,0.00013,2]
[392913860,1762133250336,500.0,0.00012011,2]
[392913861,1762133250765,500.0,0.00012011,2]
[392913862,1762133251102,500.0,0.00012011,2]
[392913863,1762133251443,500.0,0.00012011,2]
[392913864,1762133251768,500.0,0.00012011,2]
[392913865,1762133252128,500.0,0.00012011,2]
[392913866,1762133252472,500.0,0.00012011,2]
[392913867,1762133253005,500.0,0.00012011,2]
[392913868,1762133253323,500.0,0.00012011,2]
[392913869,1762133253686,500.0,0.00012011,2]
[392913870,1762133254489,500.0,0.00012011,2]
[392913871,1762133254634,693.79694071,0.00012011,2]
[392913872,1762133263835,1070.4535448,0.00013,2]
[392913873,1762133263859,1124.147174,0.00013,2]
[392913874,1762133284269,7252.17203538,0.0001439,2]
[392913875,1762133286971,247.56446448,0.000135,2]
[392913877,1762133287114,304.63429121,0.000125,2]
[392913879,1762133358862,-185.68050046,0.00014503,2]
[392913880,1762133358883,-21.10009239,0.00014527,2]
[392913881,1762133363445,-152.78,0.00014527,2]
[392913889,1762133373381,200.0,0.00013837,2]
[392913894,1762133392606,164.46490794,0.00014427,2]
[392913897,1762133408422,999.0,0.00013809,3]
[392913898,1762133408479,707.02712699,0.00014,2]
[392913899,1762133408506,99.80287301,0.00014,2]
[392913901,1762133409159,-160.78,0.0001452,2]
[392913902,1762133409184,-121.11256806,0.00014523,2]
[392913904,1762133410665,806.83,0.00014,2]
[392913905,1762133412308,806.83,0.00014,2]
[392913906,1762133413221,-132.2056193,0.00014523,2]
[392913907,1762133413245,-117.79661404,0.00014523,2]
[392913909,1762133414413,806.83,0.00014,2]
[392913911,1762133416297,806.83,0.00014,2]
[392913920,1762133431856,-77.20338596,0.00014523,2]
[392913921,1762133431867,-19.11990761,0.00014527,2]
[392913922,1762133431877,-195.0,0.00014555,2]
[392913923,1762133431887,-214.0,0.00014563,2]
[392913924,1762133431896,-300.0,0.00014574,2]
[392913925,1762133431906,-300.0,0.0001459,2]
[392913926,1762133431915,-437.83870643,0.00014599,2]
[392913927,1762133431927,-140.37053665,0.00014599,2]
[392913928,1762133431937,-250.0,0.000146,2]
[392913929,1762133431946,-146.45348985,0.000146,2]
[392913930,1762133431958,-853.54651015,0.000146,2]
[392913931,1762133431967,-150.0,0.00014612,2]
[392913932,1762133431979,-150.0,0.00014612,2]
[392913933,1762133431988,-150.0,0.00014612,2]
[392913934,1762133431997,-150.0,0.00014612,2]
[392913935,1762133432006,-252.10821844,0.00014628,2]
[392913936,1762133432015,-1.89424197,0.00014653,2]
[392913937,1762133432062,-148.10575803,0.00014653,2]
[392913938,1762133432071,-432.0,0.00014699,2]
[392913939,1762133432081,-300.0,0.00014699,2]
[392913940,1762133432091,-1200.0,0.00014699,2]
[392913941,1762133432101,-1000.0,0.000147,2]
[392913942,1762133432111,-705.81549955,0.000147,2]
[392913943,1762133432122,-294.18450045,0.000147,2]
[392913944,1762133432132,-1000.0,0.000147,2]
[392913945,1762133432141,-320.028628,0.000147,2]
[392913951,1762133432206,-1325.971372,0.000147,2]
[392913953,1762133432216,-1000.0,0.000147,2]
[392913955,1762133432226,-690.4261253,0.00014723,2]
[392913957,1762133432236,-1844.3,0.00014791,2]
[392913959,1762133432245,-118.09402445,0.00014791,2]
[392913962,1762133432264,-121.74716958,0.00014791,2]
[392913963,1762133432273,-150.0,0.00014799,2]
[392913965,1762133432283,-150.0,0.00014799,2]
[392913968,1762133432293,-4189.24606893,0.000148,2]
[392913970,1762133432302,-4189.2460689,0.00014811,2]
[392913972,1762133432311,-150.0,0.0001482,2]
[392913974,1762133432320,-150.0,0.00014821,2]
[392913976,1762133432329,-4189.2460689,0.00014822,2]
[392913978,1762133432339,-6642.37804928,0.00014832,2]
[392913980,1762133432348,-4189.2460689,0.00014833,2]
[392913982,1762133432357,-4189.2460689,0.00014844,2]
[392913984,1762133432366,-4189.2460689,0.00014856,2]
[392913986,1762133432375,-4189.2460689,0.00014867,2]
[392913988,1762133432384,-4189.2460689,0.00014878,2]
[392913990,1762133432393,-200.0,0.0001488,2]
[392913992,1762133432403,-299.58947621,0.00014886,2]
[392913994,1762133432413,-4189.2460689,0.00014889,2]
[392913996,1762133432422,-200.0,0.00014891,2]
[392913998,1762133432431,-623.58710448,0.00014891,2]
[392914000,1762133432440,-151.0,0.00014891,2]
[392914002,1762133432449,-219.92079299,0.00014891,2]
[392914004,1762133432458,-162.41354311,0.00014891,2]
[392914006,1762133432467,-500.0,0.00014891,2]
[392914008,1762133432476,-210.12151225,0.00014891,2]
[392914009,1762133432486,-151.0,0.00014891,2]
[392914010,1762133432496,-500.0,0.00014891,2]
[392914011,1762133432505,-496.47127164,0.00014891,2]
[392914012,1762133432514,-500.0,0.00014891,2]
[392914013,1762133432523,-500.0,0.00014891,2]
[392914014,1762133432533,-500.0,0.00014891,2]
[392914015,1762133432542,-500.0,0.00014891,2]
[392914016,1762133432552,-500.0,0.00014891,2]
[392914017,1762133432570,-200.0,0.00014891,2]
[392914018,1762133432579,-500.0,0.00014891,2]
[392914019,1762133432588,-500.0,0.00014891,2]
[392914020,1762133432598,-500.0,0.00014891,2]
[392914021,1762133432607,-500.0,0.00014891,2]
[392914022,1762133432617,-500.0,0.00014891,2]
[392914023,1762133432628,-500.0,0.00014891,2]
[392914024,1762133432638,-500.0,0.00014891,2]
[392914025,1762133432649,-500.0,0.00014891,2]
[392914026,1762133432661,-500.0,0.00014891,2]
[392914027,1762133432670,-500.0,0.00014891,2]
[392914028,1762133432680,-500.0,0.00014891,2]
[392914029,1762133432689,-500.0,0.00014891,2]
[392914030,1762133432698,-500.0,0.00014891,2]
[392914031,1762133432708,-500.0,0.00014891,2]
[392914032,1762133432718,-500.0,0.00014891,2]
[392914033,1762133432728,-500.0,0.00014891,2]
[392914034,1762133432739,-500.0,0.00014891,2]
[392914035,1762133432749,-500.0,0.00014891,2]
[392914036,1762133432758,-500.0,0.00014891,2]
[392914037,1762133432768,-500.0,0.00014891,2]
[392914038,1762133432777,-500.0,0.00014891,2]
[392914039,1762133432786,-500.0,0.00014891,2]
[392914040,1762133432795,-500.0,0.00014891,2]
[392914041,1762133432804,-500.0,0.00014891,2]
[392914042,1762133432813,-322.6107,0.00014891,2]
[392914043,1762133432823,-334.03597357,0.00014898,2]
[392914044,1762133432832,-3695.788,0.00014899,2]
[392914045,1762133432841,-242.263,0.00014899,2]
[392914046,1762133432850,-384.13568505,0.00014899,2]
[392914047,1762133432859,-500.0,0.00014899,2]
[392914048,1762133432869,-500.0,0.00014899,2]
[392914049,1762133432880,-500.0,0.00014899,2]
[392914050,1762133432889,-500.0,0.00014899,2]
[392914051,1762133432898,-500.0,0.00014899,2]
[392914052,1762133432907,-500.0,0.00014899,2]
[392914053,1762133432916,-175.07224281,0.00014899,2]
[392914054,1762133432925,-500.0,0.00014899,2]
[392914055,1762133432934,-8571.42658507,0.000149,2]
[392914056,1762133432946,-76242.79224313,0.000149,2]
[392914057,1762133432958,-41397.1716718,0.000149,2]
[392914058,1762133432967,-150.99,0.000149,2]
[392914059,1762133432976,-2096.0124519,0.000149,2]
[392914060,1762133432986,-4189.2460689,0.000149,2]
[392914061,1762133432996,-210.78183952,0.000149,2]
[392914062,1762133433005,-199.0902774,0.000149,2]
[392914063,1762133433015,-2096.0124519,0.00014907,2]
[392914064,1762133433024,-2096.0124519,0.00014915,2]
[392914065,1762133433033,-2096.0124519,0.00014922,2]
[392914066,1762133433043,-2096.0124519,0.00014929,2]
[392914067,1762133433053,-2096.0124519,0.00014937,2]
[392914068,1762133433062,-2096.0124519,0.00014944,2]
[392914069,1762133433072,-2096.0124519,0.00014951,2]
[392914070,1762133433082,-2096.0124519,0.00014959,2]
[392914071,1762133433091,-184.0,0.00014959,2]
[392914072,1762133433101,-2096.0124519,0.00014966,2]
[392914073,1762133433110,-245.00497354,0.00014966,2]
[392914074,1762133433121,-249.01544811,0.0001497,2]
[392914075,1762133433130,-186.17832522,0.00014971,2]
[392914076,1762133433139,-500.0,0.00014973,2]
[392914077,1762133433148,-500.0,0.00014973,2]
[392914078,1762133433158,-500.0,0.00014973,2]
[392914079,1762133433167,-500.0,0.00014973,2]
[392914080,1762133433177,-500.0,0.00014973,2]
[392914081,1762133433186,-411.99845679,0.00014973,2]
[392914082,1762133433195,-502.71113247,0.00014973,2]
[392914083,1762133433204,-500.0,0.00014973,2]
[392914084,1762133433213,-2858.78126521,0.00014979,2]
[392914085,1762133433223,-2298.91528142,0.0001498,2]
[392914086,1762133433310,200.16337338,0.0001393,2]
[392914087,1762133437811,-551.69483698,0.0001498,2]
[392914088,1762133437912,-896.40182499,0.0001498,2]
[392914089,1762133437923,-4232.17692497,0.0001498,2]
[392914090,1762133437935,-3948.53693535,0.0001498,2]
[392914091,1762133437946,-1805.22,0.0001498,2]